bitfinex-derivatives/quotes_ETHF0:USTF0_20260121
["timestamp","ask_amount","ask_price","bid_price","bid_amount"]
[1769030507413,3.55453125,3039.3,3037.7,0.16473]
[1769030507810,0.49991298,3039.7,3037.2,3.65485721]
[1769030507811,0.00385906,3039.7,3038.5,0.16469]
[1769030508015,0.00385906,3039.7,3038.5,0.16821629]
[1769030508714,0.00385906,3039.7,3038.9,0.16467]
[1769030508912,0.00385906,3039.7,3038.5,3.40187249]
[1769030509107,0.00385906,3039.7,3039.0,0.16466]
[1769030509712,9.06e-06,3039.7,3038.5,3.40187249]
[1769030510009,0.30600899,3040.7,3039.2,0.16465]
[1769030510213,3.55453125,3040.7,3039.2,0.16465]
[1769030510808,3.55719523,3040.7,3039.2,0.16465]
[1769030512123,2.31696786,3043.0,3040.3,3.3983462]
[1769030512410,0.78161708,3042.9,3040.3,3.3983462]
[1769030512609,0.78161708,3042.9,3039.6,0.16463]
[1769030512610,1.36652122,3042.4,3039.6,0.16463]
[1769030512814,0.1645,3042.1,3039.7,3.5629662]
[1769030513114,0.00332219,3042.1,3040.1,3.5629462]
[1769030517918,3.55785344,3042.1,3040.1,3.5629462]
[1769030518117,3.72235344,3042.1,3039.5,3.5629762]
[1769030518421,3.72235344,3042.1,3039.8,3.5629662]
[1769030520019,0.00332219,3042.1,3040.5,3.58296839]
[1769030520321,0.00332219,3042.1,3040.7,3.41838839]
[1769030520522,0.00332219,3042.1,3040.7,3.42215863]
[1769030522118,0.00332219,3042.1,3040.7,3.58672863]
[1769030523916,0.00332219,3042.1,3040.7,3.42215863]
[1769030524116,3.83933212,3042.1,3040.7,0.00377024]
[1769030524428,0.00332219,3042.1,3040.7,0.00377024]
[1769030525222,0.00332219,3042.1,3040.7,3.63984038]
[1769030526318,0.00332219,3042.1,3040.7,3.80441038]
[1769030526918,0.00332219,3042.1,3041.0,3.63607014]
[1769030527526,0.00332219,3042.1,3040.7,0.00377024]
[1769030527922,0.00332219,3042.1,3040.7,3.63984038]
[1769030529123,3.67150993,3044.1,3041.6,3.63607014]
[1769030529427,4.44656489,3044.0,3041.6,3.63607014]
[1769030529623,3.67150993,3044.0,3041.6,3.63607014]
[1769030529817,0.16447,3043.8,3041.6,3.63607014]
[1769030530022,0.16839716,3043.8,3041.6,3.63607014]
[1769030530318,0.16447,3043.7,3041.6,3.63607014]
[1769030530522,0.46954799,3043.7,3041.9,3.63607014]
[1769030530828,0.30507799,3043.7,3041.9,3.63607014]
[1769030531026,0.16447,3043.5,3041.9,3.63607014]
[1769030531323,0.16447,3043.6,3041.9,3.63607014]
[1769030531722,0.16447,3043.5,3041.9,3.63607014]
[1769030532025,0.00392716,3043.8,3041.9,3.63607014]
[1769030532026,0.16447,3043.6,3041.9,3.63607014]
[1769030532732,0.16447,3043.5,3041.9,3.63607014]
[1769030533028,0.16447,3043.6,3041.9,3.63607014]
[1769030534024,0.16447,3043.6,3042.1,3.63607014]
[1769030534227,0.00392716,3043.8,3042.1,3.63607014]
[1769030535526,0.31225354,3043.8,3042.1,3.63607014]
[1769030535929,0.16447,3043.7,3042.1,3.63607014]
[1769030536329,0.16447,3043.6,3042.1,3.63607014]
[1769030536530,0.16447,3043.7,3042.1,3.63607014]
[1769030536930,0.16447,3043.6,3042.1,3.63607014]
[1769030537236,0.16447,3043.7,3042.1,3.63607014]
[1769030537630,0.16447,3042.9,3041.5,3.63607014]
[1769030537837,0.16447,3042.9,3041.0,0.16455]
[1769030537838,0.16445,3042.9,3041.0,3.80062014]
[1769030538037,0.16447,3042.6,3041.0,3.80062014]
[1769030538440,0.16447,3042.5,3041.0,3.80062014]
[1769030538734,0.16447,3042.6,3041.0,3.80062014]
[1769030539139,0.16447,3042.5,3041.0,3.80062014]
[1769030539338,0.16447,3042.6,3041.0,3.80062014]
[1769030539832,0.16447,3042.5,3041.0,3.80062014]
[1769030540143,0.16447,3042.3,3040.7,3.63984038]
[1769030540334,0.77918628,3042.2,3040.7,3.63984038]
[1769030540534,0.16448,3042.5,3040.7,3.63984038]
[1769030540733,0.16447,3042.2,3040.7,3.63984038]
[1769030541141,0.16447,3042.1,3040.7,3.63984038]
[1769030541331,0.16447,3042.2,3040.7,3.63984038]
[1769030541653,0.78006499,3042.1,3040.7,3.63984038]
[1769030541832,0.16447,3042.1,3040.7,3.63984038]
[1769030542029,0.16447,3042.0,3040.7,3.63984038]
[1769030542229,3.67150993,3042.3,3040.7,0.00377024]
[1769030542531,0.16451,3041.9,3040.7,0.00377024]
[1769030542732,0.16447,3041.6,3040.7,0.00377024]
[1769030542932,0.16447,3041.4,3040.7,0.00377024]
[1769030543138,0.16447,3041.2,3040.7,0.00377024]
[1769030543338,0.16447,3041.2,3040.2,3.63607014]
[1769030543634,0.00296735,3041.6,3040.2,3.63607014]
[1769030543835,0.16447,3041.5,3040.2,3.63607014]
[1769030544338,0.16447,3041.4,3040.2,3.6400677]
[1769030544836,0.16447,3041.3,3040.2,3.6400677]
[1769030545042,0.16447,3041.4,3040.2,3.6400677]
[1769030545536,0.16447,3041.3,3040.2,3.6400677]
[1769030545737,0.16447,3041.4,3040.2,3.6400677]
[1769030546533,0.16447,3041.3,3040.2,3.6400677]
[1769030546735,0.16447,3041.4,3040.2,3.6400677]
[1769030547234,0.16447,3041.3,3040.2,3.6400677]
[1769030547435,0.16447,3041.4,3040.2,3.6400677]
[1769030547635,0.16447,3041.3,3040.2,3.6400677]
[1769030547834,0.16447,3041.4,3040.2,3.6400677]
[1769030548236,0.16447,3041.3,3040.2,3.6400677]
[1769030548541,0.16447,3041.4,3040.2,3.6400677]
[1769030548935,0.16447,3041.3,3040.2,3.6400677]
[1769030549136,0.16447,3041.4,3040.2,3.6400677]
[1769030549636,0.00296735,3041.6,3040.2,3.6400677]
[1769030549637,0.16447,3041.3,3040.2,3.6400677]
[1769030549841,0.16447,3041.4,3040.2,3.6400677]
[1769030550332,0.16447,3041.3,3040.2,3.6400677]
[1769030550534,0.16447,3041.4,3040.2,3.6400677]
[1769030551341,0.16447,3041.3,3040.2,3.6400677]
[1769030551643,0.16447,3041.4,3040.2,3.6400677]
[1769030552142,0.16447,3041.3,3040.2,3.6400677]
[1769030552335,0.16447,3041.4,3040.2,3.6400677]
[1769030552532,0.16748735,3041.6,3040.2,0.00399756]
[1769030552735,0.16447,3040.9,3040.2,0.00399756]
[1769030553141,0.16453,3041.5,3040.3,3.3565231]
[1769030553340,0.16453,3041.5,3040.2,0.00399756]
[1769030554641,0.16455,3041.1,3039.4,3.3565231]
[1769030555035,3.48707551,3041.6,3039.4,3.3565231]
[1769030555339,3.5260603,3041.5,3039.4,3.5211631]
[1769030555641,0.9430703,3041.4,3039.4,3.52490675]
[1769030555846,0.7785303,3041.3,3039.4,3.52490675]
[1769030556144,0.7785303,3041.2,3039.4,3.52490675]
[1769030556340,0.16454,3041.4,3039.4,3.52490675]
[1769030556541,0.77724648,3041.3,3039.4,3.52490675]
[1769030556843,0.77724648,3041.2,3039.4,3.52490675]
[1769030557041,0.16454,3041.4,3039.4,3.52490675]
[1769030557244,0.77724657,3041.3,3039.4,3.52490675]
[1769030557541,0.77724657,3041.2,3039.4,3.52490675]
[1769030557737,0.16454,3041.4,3039.6,3.3565231]
[1769030557935,0.77700483,3041.3,3039.6,3.3565231]
[1769030558134,0.77700483,3041.2,3039.6,3.3565231]
[1769030558338,0.16454,3041.4,3039.6,3.3565231]
[1769030558633,0.77677983,3041.3,3039.6,3.3565231]
[1769030558836,0.77677983,3041.2,3039.6,3.3565231]
[1769030559043,0.16454,3041.4,3039.6,3.3565231]
[1769030559350,0.77671281,3041.3,3039.6,3.3565231]
[1769030559550,0.77671281,3041.2,3039.6,3.3565231]
[1769030559751,0.16454,3041.4,3039.6,3.3565231]
[1769030560049,0.776713,3041.3,3039.6,3.3565231]
[1769030560349,0.776713,3041.2,3039.6,3.3565231]
[1769030560548,0.16454,3041.4,3039.6,3.3565231]
[1769030560748,0.7767812,3041.3,3039.6,3.3565231]
[1769030560945,0.7767812,3041.2,3039.6,3.3565231]
[1769030561143,0.16454,3041.4,3039.6,3.3565231]
[1769030561337,0.77690884,3041.3,3039.6,3.3565231]
[1769030561544,0.77690884,3041.2,3039.6,3.3565231]
[1769030561745,0.16454,3041.4,3039.6,3.3565231]
[1769030562043,0.77690824,3041.3,3039.6,3.3565231]
[1769030562348,0.77690824,3041.2,3039.6,3.3565231]
[1769030562545,0.16454,3041.4,3039.6,3.3565231]
[1769030562736,0.77709515,3041.3,3039.6,3.3565231]
[1769030562942,0.77709515,3041.2,3039.6,3.3565231]
[1769030563148,0.16454,3041.4,3039.6,3.3565231]
[1769030563345,0.77735026,3041.3,3039.6,3.3565231]
[1769030563546,0.77735026,3041.2,3039.6,3.3565231]
[1769030563746,0.16454,3041.3,3039.6,3.3565231]
[1769030563946,0.94189027,3041.2,3039.6,3.3565231]
[1769030564149,0.77773846,3041.1,3039.6,3.3565231]
[1769030564348,0.16454,3041.2,3039.6,3.3565231]
[1769030564544,0.77773391,3041.1,3039.6,3.3565231]
[1769030564742,0.16454,3041.2,3039.6,3.3565231]
[1769030564943,0.77773351,3041.1,3039.6,3.3565231]
[1769030565144,0.16454,3041.2,3039.6,3.3565231]
[1769030565345,0.77834653,3041.1,3039.6,3.3565231]
[1769030565545,0.16454,3041.2,3039.6,3.3565231]
[1769030565747,0.77834651,3041.1,3039.6,3.3565231]
[1769030565952,0.16454,3041.2,3039.6,3.3565231]
[1769030566251,0.77834649,3041.1,3039.6,3.3565231]
[1769030566445,0.77834649,3041.0,3039.6,3.3565231]
[1769030566651,0.16454,3041.2,3039.6,3.3565231]
[1769030566853,0.77914766,3041.1,3039.6,3.3565231]
[1769030567052,0.77914766,3041.0,3039.6,3.3565231]
[1769030567252,0.77914766,3040.9,3039.6,3.3565231]
[1769030567452,0.16454,3041.2,3039.6,3.3565231]
[1769030567649,0.78021564,3041.1,3039.6,3.3565231]
[1769030567850,0.78021564,3041.0,3039.6,3.3565231]
[1769030568048,0.78021564,3040.9,3039.6,3.3565231]
[1769030568256,0.78021564,3040.8,3039.6,3.3565231]
[1769030568554,0.16454,3041.2,3039.6,3.3565231]
[1769030568759,0.78052601,3041.1,3039.6,3.3565231]
[1769030569054,0.78052601,3041.0,3039.6,3.3565231]
[1769030569254,0.78052601,3040.9,3039.6,3.3565231]
[1769030569454,0.78052601,3040.8,3039.6,3.3565231]
[1769030569655,0.16454,3041.2,3039.6,3.3565231]
[1769030569864,4.2649648,3041.1,3039.4,0.00374365]
[1769030570050,0.16457,3040.7,3039.4,0.00374365]
[1769030570246,0.94543664,3040.6,3039.4,0.00374365]
[1769030570450,0.78085664,3040.5,3039.4,0.00374365]
[1769030571755,1.08818078,3040.5,3039.4,0.00374365]
[1769030571954,0.78085664,3040.4,3039.4,0.00374365]
[1769030582270,0.78085664,3040.4,3039.4,3.39839935]
[1769030582574,6.477,3041.4,3039.4,3.56303935]
[1769030582575,4.90496786,3041.4,3039.4,3.56303935]
[1769030582772,0.78049603,3041.3,3039.6,3.3946557]
[1769030582973,0.78049603,3041.2,3039.6,3.3946557]
[1769030583168,0.78049603,3041.1,3039.6,3.3946557]
[1769030583370,0.78049603,3041.0,3039.6,3.3946557]
[1769030583570,0.78049603,3040.9,3039.6,3.3946557]
[1769030583768,0.78049603,3040.8,3039.6,3.3946557]
[1769030583971,0.78049603,3040.7,3039.6,3.3946557]
[1769030584177,0.78049603,3040.6,3039.6,3.3946557]
[1769030584478,0.2982746,3041.2,3039.6,3.3946557]
[1769030584680,0.7807761,3041.1,3039.6,3.3946557]
[1769030584878,0.7807761,3041.0,3039.6,3.3946557]
[1769030585086,5.07249786,3041.5,3039.6,3.3946557]
[1769030585087,0.7807761,3040.9,3039.6,3.3946557]
[1769030585278,0.7807761,3040.8,3039.6,3.3946557]
[1769030585481,0.7807761,3040.7,3039.6,3.3946557]
[1769030585675,0.7807761,3040.6,3039.6,3.3946557]
[1769030585876,0.7807761,3040.5,3039.6,3.3946557]
[1769030586173,0.78081663,3040.4,3039.6,3.3946557]
[1769030586373,3.81532895,3041.2,3039.6,3.3946557]
[1769030586576,0.78081691,3041.1,3039.6,3.3946557]
[1769030586776,0.78081691,3041.0,3039.6,3.3946557]
[1769030586979,0.78081691,3040.9,3039.6,3.3946557]
[1769030587178,0.78081691,3040.8,3039.6,3.3946557]
[1769030587381,0.78081691,3040.7,3039.6,3.3946557]
[1769030587568,0.78081691,3040.6,3039.6,3.3946557]
[1769030587773,0.78081691,3040.5,3039.6,3.3946557]
[1769030587973,0.78081691,3040.4,3039.6,3.3946557]
[1769030588175,0.78081691,3040.3,3039.6,3.3946557]
[1769030588369,0.78081691,3040.2,3039.6,3.3946557]
[1769030588573,5.07151786,3041.1,3039.6,3.3946557]
[1769030588779,0.78094072,3041.0,3039.6,3.3946557]
[1769030588981,0.78094072,3040.9,3039.6,3.3946557]
[1769030589180,0.78094072,3040.8,3039.6,3.3946557]
[1769030589376,0.78094072,3040.7,3039.6,3.3946557]
[1769030589578,0.78094072,3040.6,3039.6,3.3946557]
[1769030589870,0.78094072,3040.5,3039.6,3.3946557]
[1769030590074,0.78094072,3040.4,3039.6,3.3946557]
[1769030590276,0.78094072,3040.3,3039.6,3.3946557]
[1769030590475,5.07151786,3041.1,3039.6,3.3946557]
[1769030590476,0.78094072,3040.2,3039.6,3.3946557]
[1769030590681,0.16455,3041.0,3039.6,3.3946557]
[1769030590883,0.78100177,3040.9,3039.6,3.3946557]
[1769030591076,0.78100177,3040.8,3039.6,3.3946557]
[1769030591282,0.78100177,3040.7,3039.6,3.3946557]
[1769030591482,0.16455,3041.0,3039.6,3.3946557]
[1769030591684,0.78104153,3040.9,3039.6,3.3946557]
[1769030591883,0.78104153,3040.8,3039.6,3.3946557]
[1769030592084,0.78104153,3040.7,3039.6,3.3946557]
[1769030592280,0.78104153,3040.6,3039.6,3.3946557]
[1769030592582,0.78104153,3040.5,3039.6,3.3946557]
[1769030592879,0.78104153,3040.4,3039.4,0.00374365]
[1769030593079,0.78104153,3040.3,3039.4,0.00374365]
[1769030593274,0.78104153,3040.2,3039.4,0.00374365]
[1769030593478,0.16457,3040.8,3039.4,0.00374365]
[1769030593685,0.94570791,3040.7,3039.4,0.00374365]
[1769030593876,0.78113791,3040.6,3039.4,0.00374365]
[1769030596187,0.16459,3040.4,3039.4,0.00374365]
[1769030596387,0.78113791,3040.3,3039.4,0.00374365]
[1769030596588,2.636,3040.2,3039.4,0.00374365]
[1769030596789,0.78113791,3040.1,3039.4,0.00374365]
[1769030597385,0.78113791,3040.1,3038.8,3.3946557]
[1769030598390,0.78113791,3040.1,3038.8,3.39739323]
[1769030603379,0.78113791,3040.1,3038.8,0.00273753]
[1769030603380,0.16461,3040.0,3038.8,0.00273753]
[1769030603585,0.78113791,3039.9,3038.8,0.00273753]
[1769030604890,0.92795108,3039.8,3038.8,0.00273753]
[1769030605087,0.78113791,3039.7,3038.8,0.00273753]
[1769030605288,0.78113791,3039.6,3038.8,0.00273753]
[1769030605488,0.78113791,3039.5,3038.8,0.00273753]
[1769030605688,0.16461,3040.0,3038.8,0.00273753]
[1769030605689,0.92795108,3040.1,3038.8,3.39739323]
[1769030605991,0.78067898,3040.0,3038.9,3.3946557]
[1769030606189,0.78067898,3039.9,3038.9,3.3946557]
[1769030606491,0.78067898,3039.8,3038.9,3.3946557]
[1769030606693,0.92795108,3040.1,3038.9,3.3946557]
[1769030606888,0.7805482,3040.0,3038.9,3.3946557]
[1769030607088,0.7805482,3039.9,3038.9,3.3946557]
[1769030607392,0.7805482,3039.8,3038.9,3.3946557]
[1769030607591,0.92795108,3040.1,3038.9,3.3946557]
[1769030607794,0.78047311,3040.0,3038.9,3.3946557]
[1769030607994,0.78047311,3039.9,3038.9,3.3946557]
[1769030608190,0.78047311,3039.8,3038.9,3.3946557]
[1769030608389,0.92795108,3040.1,3038.9,3.3946557]
[1769030608595,0.78042866,3040.0,3038.9,3.3946557]
[1769030608794,0.78042866,3039.9,3038.9,3.3946557]
[1769030609095,1.70837974,3039.8,3038.8,0.00273753]
[1769030609294,0.78041163,3039.7,3038.8,0.00273753]
[1769030609496,0.92795108,3039.8,3038.8,0.00273753]
[1769030610300,0.92795108,3039.5,3038.8,0.00273753]
[1769030610696,0.78042019,3039.4,3038.4,3.3946557]
[1769030610888,0.78046257,3039.3,3038.4,3.3946557]
[1769030611089,1.70844717,3039.2,3038.0,2.29925597]
[1769030611294,0.78022018,3039.1,3038.0,2.29925597]
[1769030611494,0.92795108,3039.2,3038.0,2.29925597]
[1769030611796,0.78020095,3039.1,3038.0,2.30251071]
[1769030612005,0.93203948,3039.2,3038.0,2.30251071]
[1769030612195,0.78020154,3039.1,3038.0,2.30251071]
[1769030612499,0.93203948,3039.2,3038.0,2.30251071]
[1769030612700,0.77988507,3039.1,3038.0,2.30251071]
[1769030612900,0.93203948,3039.2,3038.0,2.30251071]
[1769030613090,0.77988559,3039.1,3038.0,2.30251071]
[1769030613290,0.93203948,3039.2,3038.0,2.30251071]
[1769030613493,0.77977892,3039.1,3038.0,2.30251071]
[1769030613699,0.93203948,3039.2,3038.0,2.30251071]
[1769030613902,0.77977848,3039.1,3038.0,2.30251071]
[1769030614102,0.93203948,3039.2,3038.0,2.30251071]
[1769030614303,0.77977875,3039.1,3038.0,2.30251071]
[1769030614499,0.93203948,3039.2,3038.0,2.30251071]
[1769030614701,0.92795108,3038.9,3038.0,2.30251071]
[1769030614898,0.92795108,3038.3,3037.6,2.29925597]
[1769030615096,0.92795108,3038.3,3036.9,2.29925597]
[1769030615897,0.92795108,3038.3,3036.9,2.30177286]
[1769030616294,0.92795108,3038.3,3036.9,2.46655286]
[1769030616598,0.92795108,3038.6,3037.2,2.29925597]
[1769030619308,0.77889614,3038.5,3037.2,2.29925597]
[1769030619500,0.92795108,3038.6,3037.2,2.29925597]
[1769030619701,0.77871297,3038.5,3037.2,2.29925597]
[1769030619896,0.92795108,3038.6,3037.2,2.29925597]
[1769030620196,0.77871301,3038.5,3037.2,2.29925597]
[1769030620398,0.92795108,3038.6,3037.2,2.29925597]
[1769030620605,0.77859634,3038.5,3037.2,2.29925597]
[1769030620798,0.92795108,3038.6,3037.2,2.29925597]
[1769030621004,0.77859634,3038.5,3037.2,2.29925597]
[1769030621203,0.92795108,3038.6,3037.2,2.29925597]
[1769030621400,0.77852828,3038.5,3037.2,2.29925597]
[1769030621603,0.92795108,3038.6,3037.2,2.29925597]
[1769030621803,0.77852749,3038.5,3037.2,2.29925597]
[1769030622004,0.92795108,3038.6,3037.2,2.29925597]
[1769030622200,0.92795108,3038.3,3037.2,2.29925597]
[1769030625308,0.92795108,3039.0,3037.5,2.29925597]
[1769030625511,0.77861541,3038.9,3037.5,2.29925597]
[1769030625705,0.77861541,3038.8,3037.5,2.29925597]
[1769030625902,1.70656649,3038.7,3037.5,2.29925597]
[1769030626102,0.92795108,3038.7,3037.5,2.29925597]
[1769030626302,0.77868443,3038.6,3037.5,2.29925597]
[1769030626503,0.92795108,3038.7,3037.5,2.29925597]
[1769030627207,0.77870537,3038.6,3037.5,2.29925597]
[1769030627403,0.92795108,3038.7,3037.5,2.29925597]
[1769030627606,0.778705,3038.6,3037.5,2.29925597]
[1769030627910,0.92795108,3038.7,3037.5,2.29925597]
[1769030628109,0.778705,3038.6,3037.5,2.29925597]
[1769030628312,0.92795108,3038.7,3037.5,2.29925597]
[1769030628506,0.77876802,3038.6,3037.5,2.29925597]
[1769030628707,0.92795108,3039.0,3037.5,2.29925597]
[1769030628908,0.92795108,3039.1,3037.8,2.29925597]
[1769030630608,0.0040884,3039.2,3037.8,2.29925597]
[1769030630809,0.77899875,3039.1,3037.8,2.29925597]
[1769030631013,0.0040884,3039.2,3037.8,2.29925597]
[1769030631310,0.77899839,3039.1,3037.8,2.29925597]
[1769030631614,0.0040884,3039.2,3037.8,2.29925597]
[1769030631811,1.70711183,3039.1,3037.8,2.29925597]
[1769030632010,0.92795108,3038.8,3037.8,2.29925597]
[1769030633415,0.7805496,3038.7,3037.8,2.29925597]
[1769030633621,0.92795108,3038.8,3037.8,2.29925597]
[1769030633822,0.78054803,3038.7,3037.8,2.29925597]
[1769030634016,0.92795108,3038.8,3037.8,2.29925597]
[1769030634216,0.78054812,3038.7,3037.8,2.29925597]
[1769030634413,0.92795108,3039.1,3037.8,2.29925597]
[1769030634619,0.78065947,3039.0,3037.8,2.29925597]
[1769030634914,0.78065947,3038.9,3037.8,2.29925597]
[1769030635115,0.78065947,3038.8,3037.8,2.29925597]
[1769030635420,0.78065947,3038.7,3037.8,2.29925597]
[1769030635619,0.92795108,3039.1,3037.8,2.29925597]
[1769030635821,0.78074548,3039.0,3037.8,2.29925597]
[1769030636021,0.78074548,3038.9,3037.8,2.29925597]
[1769030636221,0.78074548,3038.8,3037.8,2.29925597]
[1769030636422,0.78074548,3038.7,3037.8,2.29925597]
[1769030636620,0.92795108,3039.1,3037.8,2.29925597]
[1769030636918,0.78100049,3039.0,3037.8,2.29925597]
[1769030637124,0.78100049,3038.9,3037.8,2.29925597]
[1769030637424,0.78100049,3038.8,3037.8,2.29925597]
[1769030637722,0.78100049,3038.7,3037.8,2.29925597]
[1769030637924,0.92795108,3039.1,3037.8,2.29925597]
[1769030638126,0.78130654,3039.0,3037.8,2.29925597]
[1769030638318,0.78130654,3038.9,3037.8,2.29925597]
[1769030638625,0.92795108,3039.1,3037.8,2.29925597]
[1769030638626,0.78130654,3038.8,3037.8,2.29925597]
[1769030638919,0.78130654,3038.7,3037.8,2.29925597]
[1769030639124,0.92795108,3039.1,3037.8,2.29925597]
[1769030639325,0.78200204,3039.0,3037.8,2.29925597]
[1769030639521,0.78200204,3038.9,3037.8,2.29925597]
[1769030639721,0.78200204,3038.8,3037.8,2.29925597]
[1769030639926,0.78200204,3038.7,3037.8,2.29925597]
[1769030640120,0.78200204,3038.6,3037.8,2.29925597]
[1769030640321,0.92795108,3039.1,3037.8,2.29925597]
[1769030640522,0.78242997,3039.0,3037.8,2.29925597]
[1769030640722,0.78242997,3038.9,3037.8,2.29925597]
[1769030640922,0.78242997,3038.8,3037.8,2.29925597]
[1769030641124,0.78242997,3038.7,3037.8,2.29925597]
[1769030641320,0.78242997,3038.6,3037.8,2.29925597]
[1769030641527,0.92795108,3039.1,3037.8,2.29925597]
[1769030641725,0.78246823,3039.0,3037.8,2.29925597]
[1769030642027,0.92795108,3039.1,3037.8,2.29925597]
[1769030642028,0.78246823,3038.9,3037.8,2.29925597]
[1769030642228,0.78246823,3038.8,3037.8,2.29925597]
[1769030642429,0.78246823,3038.7,3037.8,2.29925597]
[1769030642630,0.78246823,3038.6,3037.8,2.29925597]
[1769030642931,0.92795108,3039.1,3037.8,2.29925597]
[1769030643131,0.7824938,3039.0,3037.8,2.29925597]
[1769030643326,0.7824938,3038.9,3037.8,2.29925597]
[1769030643533,0.7824938,3038.8,3037.8,2.29925597]
[1769030643834,0.7824938,3038.7,3037.8,2.29925597]
[1769030644028,0.92795108,3039.1,3037.8,2.29925597]
[1769030644234,0.78251836,3039.0,3037.8,2.29925597]
[1769030644434,0.78251836,3038.9,3037.8,2.29925597]
[1769030644733,0.78251836,3038.8,3037.8,2.29925597]
[1769030644933,0.78251836,3038.7,3037.8,2.29925597]
[1769030645230,0.92795108,3039.1,3037.8,2.29925597]
[1769030645431,0.78253745,3039.0,3037.8,2.29925597]
[1769030645632,0.78253745,3038.9,3037.8,2.29925597]
[1769030645832,0.78253745,3038.8,3037.8,2.29925597]
[1769030646037,0.78253745,3038.7,3037.8,2.29925597]
[1769030646233,0.78253745,3038.6,3037.8,2.29925597]
[1769030646435,0.92795108,3039.1,3037.8,2.29925597]
[1769030646631,0.78255986,3039.0,3037.8,2.29925597]
[1769030646834,0.78255986,3038.9,3037.8,2.29925597]
[1769030647134,0.78255986,3038.8,3037.8,2.29925597]
[1769030647332,0.78255986,3038.7,3037.8,2.29925597]
[1769030647534,0.78255986,3038.6,3037.8,2.29925597]
[1769030647735,0.92795108,3039.1,3037.8,2.29925597]
[1769030648037,0.78256465,3039.0,3037.8,2.29925597]
[1769030648229,0.78256465,3038.9,3037.8,2.29925597]
[1769030648536,0.78257417,3038.8,3037.8,2.29925597]
[1769030648732,0.78257417,3038.7,3037.8,2.29925597]
[1769030648931,0.92795108,3039.1,3037.8,2.29925597]
[1769030649132,0.78256917,3039.0,3037.8,2.29925597]
[1769030649328,0.78256917,3038.9,3037.8,2.29925597]
[1769030649531,0.78256917,3038.8,3037.8,2.29925597]
[1769030649732,0.78256917,3038.7,3037.8,2.29925597]
[1769030649929,0.78256917,3038.6,3037.8,2.29925597]
[1769030650134,0.92795108,3039.1,3037.8,2.29925597]
[1769030650334,0.78268593,3039.0,3037.8,2.29925597]
[1769030650532,0.78268593,3038.9,3037.8,2.29925597]
[1769030650734,0.78268593,3038.8,3037.8,2.29925597]
[1769030651039,0.78268593,3038.7,3037.8,2.29925597]
[1769030651227,0.78268593,3038.6,3037.8,2.29925597]
[1769030651434,0.92795108,3039.1,3037.8,2.29925597]
[1769030651634,0.78277082,3039.0,3037.8,2.29925597]
[1769030651834,0.78277082,3038.9,3037.8,2.29925597]
[1769030652040,0.78277082,3038.8,3037.8,2.29925597]
[1769030652240,0.78277082,3038.7,3037.8,2.29925597]
[1769030652542,0.92795108,3039.1,3037.8,2.29925597]
[1769030652743,0.7828999,3039.0,3037.8,2.29925597]
[1769030653044,0.7828999,3038.9,3037.8,2.29925597]
[1769030653236,0.7828999,3038.8,3037.8,2.29925597]
[1769030653540,0.7828999,3038.7,3037.8,2.29925597]
[1769030653740,0.92795108,3039.1,3037.8,2.29925597]
[1769030653939,0.78306438,3039.0,3037.8,2.29925597]
[1769030654140,0.78306438,3038.9,3037.8,2.29925597]
[1769030654339,0.78306438,3038.8,3037.8,2.29925597]
[1769030654539,0.78306438,3038.7,3037.8,2.29925597]
[1769030654739,0.78306438,3038.6,3037.8,2.29925597]
[1769030655041,0.92795108,3039.1,3037.8,2.29925597]
[1769030655342,0.7832892,3039.0,3037.8,2.29925597]
[1769030655639,0.7832892,3038.9,3037.8,2.29925597]
[1769030655941,0.7832892,3038.8,3037.8,2.29925597]
[1769030656144,0.7832892,3038.7,3037.8,2.29925597]
[1769030656339,0.7832892,3038.6,3037.8,2.29925597]
[1769030656642,0.92795108,3039.1,3037.8,2.29925597]
[1769030656943,0.78369391,3039.0,3037.8,2.29925597]
[1769030657137,0.78369391,3038.9,3037.8,2.29925597]
[1769030657337,0.78369391,3038.8,3037.8,2.29925597]
[1769030657542,0.78369391,3038.7,3037.8,2.29925597]
[1769030657843,0.92795108,3039.1,3037.8,2.29925597]
[1769030657844,0.78369391,3038.6,3037.8,2.29925597]
[1769030658043,1.71164499,3038.5,3037.3,3.868]
[1769030658345,0.0040884,3039.2,3037.4,1.6850814]
[1769030658346,0.92795108,3038.2,3037.4,1.6850814]
[1769030658539,0.78369391,3038.1,3037.4,1.6850814]
[1769030658735,0.92795108,3038.5,3037.4,1.6850814]
[1769030659038,0.7842389,3038.4,3037.4,1.6850814]
[1769030659242,0.92795108,3038.5,3037.4,1.6850814]
[1769030659243,0.7842389,3038.3,3037.4,1.6850814]
[1769030659441,0.7842389,3038.2,3037.4,1.6850814]
[1769030659739,0.92795108,3038.5,3037.4,1.6850814]
[1769030659939,0.78397696,3038.4,3037.4,1.6850814]
[1769030660138,0.78397696,3038.3,3037.4,1.6850814]
[1769030660342,0.78397696,3038.2,3037.4,1.6850814]
[1769030660544,0.78380115,3038.1,3037.4,1.6850814]
[1769030660735,0.78380115,3038.0,3037.4,1.6850814]
[1769030660937,1.09347291,3038.9,3037.4,1.6850814]
[1769030661236,0.7838188,3038.8,3037.4,1.6850814]
[1769030661542,0.7838188,3038.7,3037.4,1.6850814]
[1769030661743,0.7838188,3038.6,3037.4,1.6850814]
[1769030662042,0.7838188,3038.5,3037.4,1.6850814]
[1769030662241,1.09347291,3038.9,3037.4,1.6850814]
[1769030662242,0.7838188,3038.4,3037.4,1.6850814]
[1769030662441,0.7838188,3038.3,3037.4,1.6850814]
[1769030662643,0.7838188,3038.2,3037.4,1.6850814]
[1769030662940,0.7838188,3038.1,3037.4,1.6850814]
[1769030663140,0.7838188,3038.0,3037.4,1.6850814]
[1769030663330,2.31696786,3038.8,3037.4,1.6850814]
[1769030663644,3.09990174,3038.8,3037.4,1.6850814]
[1769030664141,0.78293388,3038.8,3037.4,1.6850814]
[1769030664343,0.78293388,3038.7,3037.4,1.6850814]
[1769030664643,0.78293388,3038.6,3037.4,1.6850814]
[1769030664942,0.78293388,3038.5,3037.4,1.6850814]
[1769030665142,0.78293388,3038.4,3037.4,1.6850814]
[1769030665344,0.78293388,3038.3,3037.4,1.6850814]
[1769030665544,0.78293388,3038.2,3037.4,1.6850814]
[1769030665732,0.78293388,3038.1,3037.4,1.6850814]
[1769030665936,3.41044077,3038.9,3037.4,1.6850814]
[1769030666137,0.78267451,3038.8,3037.4,1.6850814]
[1769030666336,0.78267451,3038.7,3037.4,1.6850814]
[1769030666538,0.78267451,3038.6,3037.4,1.6850814]
[1769030666739,0.78267451,3038.5,3037.4,1.6850814]
[1769030667050,0.78267451,3038.4,3037.4,1.6850814]
[1769030667239,0.78267451,3038.3,3037.4,1.6850814]
[1769030667435,0.78267451,3038.2,3037.4,1.6850814]
[1769030667741,0.78267451,3038.1,3037.4,1.6850814]
[1769030667940,3.41044077,3038.9,3037.4,1.6850814]
[1769030668134,0.78060355,3038.8,3037.4,1.6850814]
[1769030668341,0.78060355,3038.7,3037.4,1.6850814]
[1769030668646,0.78060355,3038.6,3037.4,1.6850814]